fUSD/lending_fUSD_20241031
["ID","MTS","AMOUNT","RATE_DAILY","PERIOD"]
[341100901,1730369447758,-999.0,0.00059999,120]
[341100902,1730369447767,-300.02,0.00059999,120]
[341100903,1730369447777,-1536.85618048,0.00059999,120]
[341100904,1730369447786,-714.56,0.00059999,120]
[341100905,1730369447795,-714.56,0.00059999,120]
[341100906,1730369447805,-714.56,0.00059999,120]
[341100907,1730369447815,-714.56,0.00059999,120]
[341100908,1730369447825,-714.56,0.00059999,120]
[341100909,1730369447835,-50000.0,0.0006,50]
[341100910,1730369447845,-157.0,0.0006,25]
[341100911,1730369447854,-1603.46484402,0.0006,67]
[341100912,1730369447864,-206046.39899663,0.0006,64]
[341101040,1730369676067,158.11,0.00015342,2]
[341101051,1730369734360,301.0,0.00035,20]
[341101060,1730370297630,4621.4102825,0.00044592,61]
[341101062,1730370325045,4597.22,0.00027,120]
[341101063,1730370352150,1175.022,0.0002495,2]
[341101064,1730370352175,10000.0,0.0002495,2]
[341101065,1730370352201,8824.978,0.0002495,2]
[341101067,1730370416380,-165.68552094,0.000378,2]
[341101068,1730370416401,-1098.76113499,0.0004,21]
[341101069,1730370416423,-1676.88575356,0.0004,2]
[341101070,1730370428088,-3892.62379953,0.0004,2]
[341101071,1730370428109,-150.0,0.00041086,2]
[341101072,1730370428130,-150.0,0.0004118,2]
[341101073,1730370428151,-150.0,0.00041195,2]
[341101074,1730370428171,-150.0,0.00041286,2]
[341101075,1730370428192,-150.0,0.00041288,2]
[341101076,1730370428212,-150.0,0.00041699,2]
[341101077,1730370428234,-150.0,0.00041735,2]
[341101078,1730370428254,-150.0,0.00041877,2]
[341101079,1730370428274,-150.0,0.0004198,2]
[341101080,1730370428296,-8809.27631652,0.00042,2]
[341101081,1730370441100,-316.86439469,0.00042,2]
[341101082,1730370483007,1175.022,0.000145,3]
[341101083,1730370483030,10000.0,0.000145,3]
[341101084,1730370483052,10000.0,0.000145,3]
[341101085,1730370483082,10000.0,0.000145,3]
[341101086,1730370483107,10000.0,0.000145,3]
[341101087,1730370483131,1050.0,0.000145,3]
[341101088,1730370483157,27155.428,0.000145,3]
[341101102,1730370545088,-26090.51918292,0.00036,120]
[341101103,1730370545109,-30036.2880938,0.00036,2]
[341101104,1730370545130,-551.58654647,0.000379,2]
[341101105,1730370545152,-373.29678819,0.0004,2]
[341101106,1730370545172,-624.27284102,0.0004,5]
[341101107,1730370545192,-209.31083297,0.0004,2]
[341101108,1730370545213,-15180.89338245,0.0004,15]
[341101109,1730370545232,-519.91789976,0.0004,5]
[341101110,1730370545252,-92257.13883242,0.0004079,2]
[341101111,1730370556116,-6857.29097506,0.0004079,2]
[341101112,1730370556141,-20806.41362494,0.00042,2]
[341101113,1730370556174,-27046.5476678,0.00042,2]
[341101114,1730370556195,-499.999998,0.00042,5]
[341101115,1730370556217,-8870.38368509,0.00042,2]
[341101116,1730370556240,-576.0,0.00042,2]
[341101117,1730370556261,-6053.27456459,0.00042,30]
[341101118,1730370556283,-1315.62892921,0.0004201,2]
[341101119,1730370556305,-900.0,0.00042345,14]
[341101120,1730370556324,-253.28187643,0.00042999,5]
[341101121,1730370556344,-181.63817466,0.00043,7]
[341101122,1730370556364,-654.51023178,0.00043,2]
[341101123,1730370556391,-650.44,0.00044303,2]
[341101124,1730370556411,-150.0,0.00045034,2]
[341101125,1730370556437,-250.0,0.0004523,120]
[341101126,1730370556459,-162.07,0.00045463,120]
[341101127,1730370556479,-919.06,0.00045532,120]
[341101128,1730370556497,-2264.62,0.00045532,2]
[341101129,1730370556517,-230.38,0.00045881,2]
[341101130,1730370556537,-585.26,0.00045926,120]
[341101131,1730370556558,-250.0,0.00045954,120]
[341101132,1730370556578,-157.0,0.00045991,2]
[341101133,1730370556598,-150.0,0.00045998,7]
[341101134,1730370556617,-500.0,0.00046007,2]
[341101135,1730370556637,-200.0,0.00046019,2]
[341101136,1730370556658,-23890.0,0.00046033,2]
[341101137,1730370556678,-2551.47,0.00046068,2]
[341101138,1730370556699,-966.67,0.00046103,2]
[341101139,1730370556718,-200.0,0.0004614,2]
[341101140,1730370556738,-150.0,0.00046163,2]
[341101141,1730370556757,-330.88,0.00046174,2]
[341101142,1730370556778,-1000.0,0.00046174,2]
[341101143,1730370556798,-250.0,0.00046219,2]
[341101144,1730370556818,-150.0,0.00046249,2]
[341101145,1730370556838,-650.44,0.00046567,2]
[341101146,1730370556858,-3387.88,0.00046737,2]
[341101147,1730370556877,-1116.9,0.00046737,2]
[341101148,1730370556897,-26563.45,0.00046737,2]
[341101149,1730370556917,-500.0,0.00047193,4]
[341101150,1730370556937,-500.0,0.00047202,4]
[341101151,1730370556956,-500.0,0.00047211,4]
[341101152,1730370556975,-500.0,0.0004722,4]
[341101153,1730370556995,-500.0,0.00047229,4]
[341101154,1730370557015,-500.0,0.00047237,4]
[341101155,1730370557034,-500.0,0.00047246,4]
[341101156,1730370557053,-500.0,0.00047255,4]
[341101157,1730370557073,-500.0,0.00047264,4]
[341101158,1730370557095,-500.0,0.00047273,4]
[341101159,1730370557114,-500.0,0.00047281,4]
[341101160,1730370557135,-500.0,0.0004729,4]
[341101161,1730370557160,-500.0,0.00047299,4]
[341101162,1730370557182,-500.0,0.00047308,4]
[341101163,1730370557203,-500.0,0.00047317,4]
[341101164,1730370557227,-332.54,0.00047317,80]
[341101165,1730370557252,-171.52,0.00047492,2]
[341101166,1730370557274,-93573.01873174,0.0004777,2]
[341101167,1730370557299,-360.96,0.00048234,2]
[341101168,1730370557321,-650.44,0.00048831,2]
[341101169,1730370557344,-1551.86600768,0.00048889,120]
[341101170,1730370557366,-152.0,0.00049388,3]
[341101171,1730370557392,-741.93416005,0.000499,15]
[341101172,1730370557414,-15597.78187023,0.000499,2]
[341101173,1730370557440,-251.41970532,0.000499,22]
[341101174,1730370557462,-150.0,0.0005,2]
[341101175,1730370557482,-49749.14162521,0.0005,7]
[341101176,1730370581543,62642.96146101,0.00044592,61]
[341101199,1730370631489,-500.0,0.00044592,2]
[341101200,1730370631501,-502.64360004,0.0004795,10]
[341101201,1730370631511,-235.1666809,0.000499,2]
[341101202,1730370631521,-12762.18971922,0.0005,7]
[341101203,1730370631652,-16257.448574,0.0005,7]
[341101205,1730370637661,-19800.63070739,0.0005,7]
[341101206,1730370637676,-6629.228122,0.0005,7]
[341101207,1730370637819,-49304.11039516,0.0005,7]
[341101208,1730370637829,-178.17566008,0.0005,120]
[341101209,1730370637839,-151.0,0.0005,120]
[341101210,1730370637850,-200.0,0.0005,7]
[341101211,1730370637860,-425.0,0.000501,2]
[341101212,1730370637869,-550.0,0.000504,2]
[341101213,1730370637878,-180.0,0.00050523,120]
[341101214,1730370637889,-150.0,0.00050748,2]
[341101215,1730370637900,-4104.0,0.00051,2]
[341101216,1730370637911,-250.0,0.00051,2]
[341101217,1730370637921,-179.60350401,0.00051,2]
[341101218,1730370637931,-650.44,0.00051095,2]
[341101219,1730370637942,-150.0,0.000513,2]
[341101220,1730370637953,-585.26,0.00051667,120]
[341101223,1730370637963,-20501.26343846,0.000518,30]
[341101261,1730370639684,-1607.77308214,0.000518,30]
[341101273,1730370642438,-2413.14897499,0.000518,30]
[341101276,1730370642456,-3205.83101895,0.000518,30]
[341101277,1730370642628,-4676.39200142,0.000518,30]
[341101278,1730370642698,-2928.07648561,0.000518,30]
[341101315,1730370645469,-1741.97928482,0.000518,30]
[341101316,1730370645653,-29605.56440868,0.000518,30]
[341101317,1730370645663,-150.0,0.000518,30]
[341101318,1730370645675,-200.0,0.000518,30]
[341101319,1730370645687,-741.93416005,0.00051867,15]
[341101320,1730370645697,-1000.0,0.00051946,120]
[341101321,1730370645709,-1268.009,0.00052616,120]
[341101322,1730370645719,-2902.0,0.00052616,120]
[341101323,1730370645729,-406.771,0.00052616,2]
[341101324,1730370645741,-814.0,0.00052616,120]
[341101325,1730370645755,-1249.0,0.00052616,120]
[341101326,1730370645765,-451.0,0.00052616,120]
[341101327,1730370645776,-557.0,0.00052616,120]
[341101328,1730370645788,-1983.0,0.00052616,120]
[341101329,1730370645799,-288.76,0.00052693,2]
[341101332,1730370645811,-483.33,0.00052849,2]
[341101334,1730370645823,-650.44,0.00053359,2]
[341101336,1730370645834,-200.0,0.000537,2]
[341101338,1730370645844,-741.93416005,0.00053833,15]
[341101340,1730370645855,-177.3,0.000539,7]
[341101342,1730370645866,-9900.0,0.00054,120]
[341101344,1730370645876,-235.16668089,0.0005407,120]
[341101346,1730370645887,-179.37,0.0005417,120]
[341101348,1730370645897,-500.0,0.00054795,120]
[341101350,1730370645907,-500.0,0.00054795,120]
[341101352,1730370645919,-500.0,0.00054795,120]
[341101354,1730370645930,-152.0,0.00055041,4]
[341101356,1730370645941,-288.76,0.00055328,2]
[341101358,1730370645952,-169.57,0.00055354,2]
[341101360,1730370645963,-169.57,0.00055423,2]
[341101362,1730370645973,-169.57,0.00055492,2]
[341101365,1730370645984,-169.57,0.00055561,2]
[341101366,1730370645995,-1000.0,0.000556,30]
[341101367,1730370646009,-425.651404,0.000556,30]
[341101368,1730370646022,-1254.0,0.00055616,120]
[341101369,1730370646032,-2902.0,0.00055616,120]
[341101370,1730370646042,-395.81,0.00055616,120]
[341101371,1730370646053,-1980.0,0.00055616,120]
[341101372,1730370646064,-650.44,0.00055622,2]
[341101373,1730370646076,-169.57,0.00055631,2]
[341101374,1730370646087,-741.93416005,0.000558,15]
[341101375,1730370646098,-550.26933381,0.000559,30]
[341101376,1730370646109,-4104.09732049,0.000564,30]
[341101377,1730370646290,-250.52673223,0.000564,30]
[341101378,1730370646300,-150.0,0.00056462,120]
[341101379,1730370646310,-150.85,0.00056701,2]
[341101380,1730370646319,-150.85,0.00056701,2]
[341101381,1730370646328,-189.05313934,0.00056701,7]
[341101382,1730370646338,-151.0,0.00056711,120]
[341101383,1730370646350,-151.0,0.00056711,120]
[341101384,1730370646360,-151.0,0.00056711,120]
[341101385,1730370646369,-151.0,0.00056711,120]
[341101386,1730370646379,-153.895429,0.00056711,120]
[341101387,1730370646388,-151.0,0.00056711,120]
[341101388,1730370646401,-151.0,0.00056711,120]
[341101389,1730370646410,-130543.51257527,0.00056711,30]
[341101390,1730370646522,-1561.32223514,0.00056711,30]
[341101391,1730370646543,-10104.44850276,0.00056711,30]
[341101392,1730370646554,-7226.57356512,0.00056711,30]
[341101393,1730370656453,150.0,0.00017605,2]
[341101394,1730370687683,-200.0,0.0005,2]
[341101395,1730370809397,160.12,0.00015342,2]
[341101396,1730370832383,6839.88,0.0001726,7]
[341101397,1730370832410,5313.4517397,0.0001726,7]
[341101400,1730371109978,550.0,0.00015,2]
[341101401,1730371111060,600.0,0.00017,2]
[341101404,1730371375287,157.77,0.00015342,2]
[341101406,1730371445233,3740.2547994,0.0004459,120]
[341101409,1730371628141,-4051.26533542,0.0004384,2]
[341101410,1730371648097,-476.88132818,0.00044061,11]
[341101411,1730371755138,-353.908259,0.0004384,2]
[341101412,1730371755158,-798.365941,0.00044061,11]
[341101413,1730371757085,-552.97028718,0.00044061,11]
[341101414,1730371763152,-300.09273786,0.00044061,11]
[341101415,1730371763174,-300.0,0.00044499,4]
[341101416,1730371763195,-65800.0,0.000445,20]
[341101417,1730371763215,-1000.0,0.00047,40]
[341101418,1730371763236,-1000.0,0.00048,40]
[341101419,1730371763260,-1000.0,0.00049052,40]
[341101420,1730371763281,-618.31,0.00049052,5]
[341101421,1730371763302,-3933.68,0.00049052,2]
[341101422,1730371763324,-473.46,0.00049052,30]
[341101423,1730371763347,-150.0,0.0005,120]
[341101424,1730371763369,-354.0,0.0005,120]
[341101425,1730371763388,-150.0,0.0005,120]
[341101426,1730371763408,-150.0,0.0005,120]
[341101427,1730371763429,-150.0,0.0005,120]
[341101428,1730371763451,-150.0,0.0005,120]
[341101429,1730371763474,-150.0,0.0005,120]
[341101430,1730371763495,-150.0,0.0005,120]
[341101431,1730371763634,-150.0,0.0005,120]
[341101432,1730371763657,-1000.0,0.0005,40]
[341101433,1730371763679,-732.0,0.0005,11]
[341101434,1730371763701,-455.3,0.00050739,2]
[341101435,1730371763721,-150.0,0.00051,120]
[341101436,1730371763741,-1000.0,0.00051,40]
[341101437,1730371763762,-263.72,0.000518,2]
[341101438,1730371763787,-150.0,0.00051954,2]
[341101439,1730371763811,-150.0,0.00052,120]
[341101440,1730371763833,-157.0,0.00052215,2]
[341101441,1730371763855,-304.4,0.00052228,2]
[341101442,1730371763877,-322.88,0.00052594,2]
[341101443,1730371763899,-3198.67,0.00052697,63]
[341101444,1730371763922,-150.0,0.00052839,2]
[341101445,1730371763944,-4741.23,0.00052966,120]
[341101446,1730371763965,-150.0,0.00053,120]
[341101447,1730371763986,-150.99,0.00053,2]
[341101448,1730371764007,-1000.0,0.00053,40]
[341101449,1730371764027,-455.3,0.00053003,2]
[341101450,1730371764049,-812.0,0.00053359,120]
[341101451,1730371764071,-250.0,0.0005348,120]
[341101452,1730371764090,-250.0,0.0005348,120]
[341101453,1730371764111,-600.0,0.0005348,120]
[341101454,1730371764508,200.0,0.00047,40]
[341101455,1730371765776,200.0,0.00048,40]
[341101456,1730371768104,-300.0,0.00053553,120]
[341101457,1730371768127,-200.0,0.00053559,10]
[341101458,1730371768147,-200.0,0.00053597,10]
[341101459,1730371768167,-200.0,0.00053642,10]
[341101460,1730371768187,-1215.0,0.00053753,2]
[341101461,1730371768207,-200.0,0.00053799,10]
[341101462,1730371768227,-150.0,0.00054,120]
[341101463,1730371787709,556.45,0.00053429,120]
[341101464,1730371804672,5006.47657508,0.00053359,120]
[341101465,1730371804696,8324.23572684,0.00053359,120]
[341101466,1730371804718,240.28769808,0.00053359,120]
[341101467,1730371804743,158.192,0.00053359,120]
[341101468,1730371804948,5903.0,0.00053359,120]
[341101469,1730371805585,1154.0,0.00053359,120]
[341101470,1730371807248,150.0,0.00053359,120]
[341101471,1730371810895,1087.0,0.00053359,120]
[341101472,1730371812558,150.0,0.00053359,2]
[341101473,1730371813078,186.88819191,0.00053429,120]
[341101474,1730371817428,150.0,0.00053359,120]
[341101475,1730371817738,156.398,0.00053359,120]
[341101476,1730371823237,150.0,0.00053359,120]
[341101477,1730371830897,130.44506738,0.00053359,2]
[341101483,1730371831685,-99.43093262,0.00053359,2]
[341101484,1730371831694,-264.53,0.00053359,120]
[341101485,1730371831704,-400.0,0.00054289,120]
[341101486,1730371831713,-159.52875592,0.00054347,102]
[341101487,1730371831725,-190.28724408,0.00054347,102]
[341101488,1730371831734,-500.0,0.00054795,120]
[341101489,1730371831743,-97.85526707,0.00054795,120]
[341101490,1730371831754,-402.14473293,0.00054795,120]
[341101491,1730371831764,-433.26618225,0.00054795,120]
[341101492,1730371831783,-66.73381775,0.00054795,120]
[341101493,1730371831794,-300.0,0.00054923,120]
[341101494,1730371831805,-164.9,0.00055068,2]
[341101495,1730371831816,-455.3,0.00055267,2]
[341101496,1730371831827,-289.03948794,0.00055538,120]
[341101497,1730371831884,-267.41051206,0.00055538,120]
[341101498,1730371831895,-846.97,0.00055827,2]
[341101499,1730371831905,-160.12,0.0005589,2]
[341101500,1730371831917,-15962.12657835,0.0005589,30]
[341101512,1730371838847,-150.0,0.00053359,120]
[341101513,1730371838858,-9041.22342165,0.0005589,30]
[341101514,1730371838868,-9999.99,0.0005589,2]
[341101515,1730371838878,-150.0,0.00056,120]
[341101516,1730371838888,-150.0,0.00056045,7]
[341101517,1730371838898,-165.47,0.0005613,120]
[341101518,1730371838907,-4219.54375235,0.0005615,2]
[341101519,1730371838917,-420.33358301,0.00056221,2]
[341101520,1730371838926,-150.0,0.00056359,120]
[341101521,1730371838936,-150.0,0.00056359,120]
[341101522,1730371838948,-150.0,0.00056359,120]
[341101523,1730371838958,-150.0,0.00056359,120]
[341101524,1730371838968,-420.33358301,0.00056555,2]
[341101525,1730371838977,-500.0,0.0005671,120]
[341101526,1730371838987,-500.0,0.0005671,120]
[341101527,1730371838997,-434.18302968,0.0005671,120]
[341101528,1730371839007,-500.0,0.0005671,120]
[341101529,1730371839018,-500.0,0.0005671,120]
[341101530,1730371839027,-387.64388431,0.0005671,120]
[341101531,1730371839036,-2000.0,0.00056711,15]
[341101532,1730371839047,-200.0,0.00056711,15]
[341101533,1730371839057,-154889.93048665,0.00056711,30]
[341101534,1730371839070,-107282.9363875,0.00056711,30]
[341101535,1730371839079,-235.16668089,0.00056843,120]
[341101536,1730371839089,-195.87891449,0.00056943,28]
[341101537,1730371839099,-420.33358301,0.00056996,2]
[341101538,1730371839108,-2000.0,0.00057278,15]
[341101539,1730371839117,-200.0,0.00057278,15]
[341101540,1730371839127,-420.33358301,0.00057314,2]
[341101541,1730371839224,-496.03046275,0.00057407,120]
[341101545,1730371839696,-89.22953725,0.00057407,120]
[341101546,1730371839705,-455.3,0.00057531,2]
[341101547,1730371839715,-556.45,0.00057647,120]
[341101548,1730371839725,-2000.0,0.00057851,15]
[341101549,1730371839734,-200.0,0.00057851,15]
[341101550,1730371839744,-313.76072265,0.000579,2]
[341101551,1730371839754,-350.16658853,0.0005799,7]
[341101552,1730371839764,-150.85,0.0005799,2]
[341101553,1730371839773,-1805.393058,0.00057999,120]
[341101554,1730371839782,-500.0,0.00057999,14]
[341101555,1730371839791,-184.6689147,0.00057999,120]
[341101556,1730371839805,-801.73242202,0.00058,67]
[341101557,1730371839815,-206772.9489685,0.00058,64]
[341101558,1730371839914,-8097.4643805,0.00058,64]
[341101559,1730371839926,-396.991031,0.00058,64]
[341101560,1730371839938,-924.36999999,0.00058,64]
[341101561,1730371839949,-687.60309327,0.00058,64]
[341101562,1730371841166,154.6146,0.000444,44]
[341101570,1730371842775,-511.855377,0.000424,44]
[341101571,1730371842785,-500.0,0.000434,44]
[341101572,1730371842797,-345.3854,0.000444,44]
[341101573,1730371842808,-16272.010326,0.00058,64]
[341101574,1730371842966,-30246.57974111,0.00058,64]
[341101575,1730371842976,-12920.41865889,0.00058,30]
[341101578,1730371845740,-333801.47911859,0.00058,30]
[341101579,1730371845750,-1017.59638763,0.00058,120]
[341101580,1730371845760,-700.0,0.00058,48]
[341101581,1730371845769,-2077.0,0.00058408,30]
[341101582,1730371845779,-200.0,0.00058429,15]
[341101583,1730371845789,-5357.6065594,0.0005858,120]
[341101584,1730371845801,-4259.13392026,0.0005859,2]
[341101585,1730371845811,-846.97,0.00058619,2]
[341101586,1730371845821,-150.85,0.0005867,2]
[341101587,1730371845831,-126696.97266977,0.0005868,25]
[341101588,1730371845841,-151.0,0.0005868,120]
[341101589,1730371845850,-158.223256,0.0005868,120]
[341101590,1730371845859,-291.184951,0.0005868,120]
[341101591,1730371845868,-151.0,0.0005868,120]
[341101592,1730371845877,-151.0,0.0005868,120]
[341101593,1730371845886,-151.0,0.0005868,120]
[341101594,1730371845895,-151.0,0.0005868,120]
[341101595,1730371845904,-151.0,0.0005868,120]
[341101596,1730371845913,-151.0,0.0005868,120]
[341101597,1730371845922,-151.0,0.0005868,120]
[341101598,1730371845933,-167.564736,0.0005868,120]
[341101599,1730371845942,-151.0,0.0005868,120]
[341101600,1730371845951,-151.0,0.0005868,120]
[341101601,1730371845961,-151.0,0.0005868,120]
[341101602,1730371845970,-958.413437,0.0005868,120]
[341101603,1730371845978,-958.413437,0.0005868,120]
[341101604,1730371845987,-151.0,0.0005868,120]
[341101605,1730371845996,-151.0,0.0005868,120]
[341101606,1730371846006,-151.0,0.0005868,120]
[341101607,1730371846016,-158.072197,0.0005868,120]
[341101608,1730371846026,-165.944747,0.0005868,120]
[341101609,1730371846036,-153.292375,0.0005868,120]
[341101610,1730371846047,-151.0,0.0005868,120]
[341101611,1730371846056,-151.0,0.0005868,120]
[341101612,1730371846066,-151.0,0.0005868,7]
[341101613,1730371846076,-151.0,0.0005868,120]
[341101614,1730371846086,-151.0,0.0005868,7]
[341101615,1730371846097,-151.0,0.0005868,120]
[341101616,1730371846107,-155.330108,0.0005868,120]
[341101617,1730371846118,-151.0,0.0005868,120]
[341101618,1730371846129,-852.418084,0.0005868,120]
[341101619,1730371846139,-151.0,0.0005868,120]
[341101620,1730371846148,-852.418084,0.0005868,120]
[341101621,1730371846159,-151.0,0.0005868,120]
[341101622,1730371846169,-200.0,0.0005868,2]
[341101623,1730371846179,-200.0,0.0005868,2]
[341101624,1730371846190,-151.0,0.0005868,120]
[341101625,1730371846200,-200.0,0.0005868,2]
[341101626,1730371846211,-200.0,0.0005868,2]
[341101627,1730371846220,-197.0,0.0005868,2]
[341101628,1730371846231,-350.16658853,0.0005868,7]
[341101629,1730371846241,-350.16658853,0.0005868,7]
[341101630,1730371846251,-150.85,0.0005868,2]
[341101631,1730371846261,-150.85,0.0005868,2]
[341101632,1730371846271,-150.85,0.0005868,2]
[341101633,1730371846280,-150.85,0.0005868,2]
[341101634,1730371846289,-150.85,0.0005868,2]
[341101635,1730371846299,-150.85,0.0005868,2]
[341101636,1730371846308,-150.85,0.0005868,2]
[341101637,1730371846318,-150.85,0.0005868,2]
[341101638,1730371846327,-150.85,0.0005868,2]
[341101639,1730371846337,-150.85,0.0005868,2]
[341101640,1730371846346,-150.85,0.0005868,2]
[341101641,1730371846356,-150.85,0.0005868,2]
[341101642,1730371846365,-150.85,0.0005868,2]
[341101643,1730371846374,-150.85,0.0005868,2]
[341101644,1730371846384,-150.85,0.0005868,2]
[341101645,1730371846393,-150.85,0.0005868,2]
[341101646,1730371846402,-150.85,0.0005868,2]
[341101647,1730371846411,-150.85,0.0005868,2]
[341101648,1730371846421,-150.85,0.0005868,2]
[341101649,1730371846430,-150.85,0.0005868,2]
[341101650,1730371846440,-150.85,0.0005868,2]
[341101651,1730371846449,-150.85,0.0005868,2]
[341101652,1730371846458,-150.85,0.0005868,2]
[341101653,1730371846467,-150.85,0.0005868,2]
[341101654,1730371846476,-150.85,0.0005868,2]
[341101655,1730371846485,-150.85,0.0005868,2]
[341101656,1730371846495,-267969.10533748,0.0005869,120]
[341101657,1730371846510,-21695.842524,0.0005869,120]
[341101658,1730371846522,-14538.26455612,0.0005869,120]
[341101659,1730371877165,236.08,0.00019178,2]
[341101660,1730371915693,157.46,0.00015342,2]
[341101662,1730371921953,300.0,0.00019725,2]
[341101663,1730371922630,420.0,0.00021484,2]
[341101664,1730372030534,17700.0,0.0002,2]
[341101665,1730372030560,57303.01166753,0.0002,2]
[341101666,1730372095070,30013.67,0.0002,2]
[341101667,1730372161878,300.0,0.00019725,2]
[341101668,1730372221908,300.0,0.00019725,2]
[341101669,1730372267728,1554.98779407,0.00044602,120]
[341101670,1730372390764,163.94,0.00019178,2]
[341101671,1730372401588,300.0,0.00019725,2]
[341101672,1730372521303,300.0,0.00019725,2]
[341101673,1730372544301,3000.0,0.00044625,53]
[341101675,1730372555250,156.57,0.00015342,2]
[341101676,1730372582539,300.0,0.00019725,2]
[341101677,1730372642035,300.0,0.00019725,2]
[341101679,1730372702509,300.0,0.00019725,2]
[341101680,1730372761308,300.0,0.00019725,2]
[341101681,1730372822623,300.0,0.00019725,2]
[341101682,1730372828299,-153.20553104,0.00021484,2]
[341101683,1730372839161,-266.79446896,0.00021484,2]
[341101684,1730372839181,-257.04423096,0.00022366,2]
[341101685,1730372839202,-75.40294484,0.00022466,2]
[341101686,1730372851106,-88.53705516,0.00022466,2]
[341101687,1730372851129,-587.0,0.00023401,2]
[341101688,1730372851152,-706.95263095,0.00025488,2]
[341101689,1730372864066,-273.191,0.00024978,2]
[341101690,1730372864088,-116.04736905,0.00025488,2]
[341101691,1730372864111,-163.94,0.00025753,2]
[341101692,1730372864132,-1152.0,0.00027761,2]
[341101693,1730372864152,-163.94,0.00029041,2]
[341101694,1730372864173,-150.99,0.00029041,2]
[341101695,1730372881551,-224.79989565,0.00028941,2]
[341101696,1730372881900,300.0,0.00019725,2]
[341101697,1730372882652,420.0,0.00021484,2]
[341101698,1730372883645,587.0,0.00023401,2]
[341101699,1730372884407,823.0,0.00025488,2]
[341101700,1730372885156,1152.0,0.00027761,2]
[341101701,1730372913484,550.0,0.00015,2]
[341101702,1730372914569,600.0,0.00017,2]
[341101703,1730372915641,650.0,0.00019,2]
[341101704,1730372933547,163.94,0.00019178,2]
[341101705,1730372946101,-700.0,0.00021,2]
[341101706,1730372946123,-750.0,0.00023,2]
[341101707,1730372946142,-800.0,0.00025,2]
[341101708,1730372946162,-850.0,0.00027,2]
[341101709,1730372946182,-900.0,0.00029,2]
[341101710,1730372946202,-225.0,0.000301,2]
[341101711,1730372946222,-999.99,0.000301,2]
[341101712,1730372946243,-418.0,0.000302,2]
[341101713,1730372946265,-9999.99,0.000302,2]
[341101714,1730372946287,-950.0,0.00031,2]
[341101715,1730372946307,-1000.0,0.00033,2]
[341101716,1730372946329,-1050.0,0.00035,2]
[341101717,1730372946352,-163.94,0.00035616,120]
[341101718,1730372946373,-12235.67,0.00035872,2]
[341101719,1730372946396,-273.12,0.00036425,2]
[341101720,1730372946417,-1100.0,0.00037,2]
[341101721,1730372946443,-1150.0,0.00039,2]
[341101722,1730372946464,-156.57,0.00039671,2]
[341101723,1730372946483,-1200.0,0.00041,2]
[341101724,1730372946506,-200.0,0.00041138,2]
[341101725,1730372946531,-1250.0,0.00043,2]
[341101726,1730372946551,-1129.76275888,0.0004371,10]
[341101727,1730372946574,-476.88132818,0.00044061,11]
[341101728,1730372946595,-3430.64055466,0.00044061,5]